fUSD/lending_fUSD_20240623
["ID","MTS","AMOUNT","RATE_DAILY","PERIOD"]
[330192509,1719101072503,507.8192022,0.00021917,31]
[330192517,1719101431852,-165.03,0.0001539,2]
[330192518,1719101431863,-221.8941814,0.00015478,2]
[330192519,1719101431875,-665.33482033,0.00015478,2]
[330192520,1719101431884,-562.78,0.00016902,2]
[330192521,1719101431894,-1017.04312744,0.000186,5]
[330192522,1719101432037,-1001.55012815,0.000186,5]
[330192523,1719101432049,-9727.40674441,0.000186,5]
[330192524,1719101432058,-150.0,0.00018999,2]
[330192525,1719101432067,-1210.46,0.00019053,2]
[330192526,1719101432076,-200.0,0.00019071,2]
[330192527,1719101432086,-167.34,0.00019072,2]
[330192528,1719101432095,-250.0,0.00019094,2]
[330192530,1719101432104,-1500.0,0.00019143,5]
[330192531,1719101432113,-187.54,0.00019147,2]
[330192532,1719101432122,-562.78,0.00019166,2]
[330192533,1719101432131,-250.0,0.00019178,2]
[330192534,1719101432139,-1620.92,0.00019208,2]
[330192535,1719101432149,-228.93,0.0001922,2]
[330192536,1719101432158,-23890.0,0.00019241,2]
[330192538,1719101432167,-250.0,0.00019297,2]
[330192540,1719101432176,-159.92,0.00019302,2]
[330192542,1719101432186,-165.65,0.00019382,2]
[330192544,1719101432195,-155.0,0.0001952,2]
[330192546,1719101432204,-1000.0,0.00019521,2]
[330192548,1719101432217,-150.99,0.0001964,2]
[330192550,1719101432226,-499.99,0.00019725,2]
[330192552,1719101432235,-173.0,0.00019738,2]
[330192554,1719101432244,-1164.65,0.00020055,2]
[330192556,1719101432253,-836.04,0.00020055,2]
[330192558,1719101432263,-155.09550556,0.00020553,2]
[330192560,1719101432271,-415.07899166,0.00020575,2]
[330192562,1719101432280,-690.00328514,0.00020608,2]
[330192564,1719101432290,-384.20872226,0.00020637,2]
[330192566,1719101432299,-415.9833,0.000208,2]
[330192568,1719101432308,-500.0,0.00020831,2]
[330192570,1719101432317,-2194.30401,0.00020831,2]
[330192572,1719101432327,-500.0,0.00020832,2]
[330192574,1719101432335,-500.0,0.00020832,2]
[330192576,1719101432344,-200.0,0.00020832,2]
[330192578,1719101432353,-163.97261619,0.0002089,2]
[330192580,1719101432362,-159281.92898674,0.000209,2]
[330192584,1719101432390,-1238.13099638,0.000209,2]
[330192614,1719101437686,-1676.01050199,0.000208,2]
[330192615,1719101437696,-163.97261619,0.0002089,2]
[330192616,1719101437706,-163.97261619,0.0002089,2]
[330192617,1719101437719,-163.97261619,0.0002089,2]
[330192618,1719101437728,-163.97261619,0.0002089,2]
[330192619,1719101437738,-163.97261619,0.0002089,2]
[330192620,1719101437747,-163.97261619,0.0002089,2]
[330192621,1719101437756,-163.97261619,0.0002089,2]
[330192622,1719101437766,-163.97261619,0.0002089,2]
[330192623,1719101437776,-163.97261619,0.0002089,2]
[330192624,1719101437785,-163.97261619,0.0002089,2]
[330192625,1719101437795,-163.97261619,0.0002089,2]
[330192626,1719101437804,-163.97261619,0.0002089,2]
[330192627,1719101437814,-163.97261619,0.0002089,2]
[330192628,1719101437823,-163.97261619,0.0002089,2]
[330192629,1719101437833,-163.97261619,0.0002089,2]
[330192630,1719101437842,-123.23837105,0.0002089,2]
[330192631,1719101437953,-40.73424514,0.0002089,2]
[330192632,1719101437963,-163.97261619,0.0002089,2]
[330192633,1719101437973,-163.97261619,0.0002089,2]
[330192634,1719101437982,-163.97261619,0.0002089,2]
[330192635,1719101437992,-163.97261619,0.0002089,2]
[330192636,1719101438002,-163.97261619,0.0002089,2]
[330192637,1719101438012,-163.97261619,0.0002089,2]
[330192638,1719101438021,-39.05420354,0.0002089,2]
[330192643,1719101439808,-544.23279012,0.00020811,2]
[330192644,1719101440235,-1131.77771181,0.00020811,2]
[330192645,1719101440244,-124.91841265,0.0002089,2]
[330192646,1719101440253,-163.97261619,0.0002089,2]
[330192647,1719101440263,-163.97261619,0.0002089,2]
[330192648,1719101440272,-163.97261619,0.0002089,2]
[330192649,1719101440281,-163.97261619,0.0002089,2]
[330192650,1719101440290,-163.97261619,0.0002089,2]
[330192651,1719101440299,-163.97261619,0.0002089,2]
[330192652,1719101440309,-163.97261619,0.0002089,2]
[330192653,1719101440319,-163.97261619,0.0002089,2]
[330192654,1719101440328,-163.97261619,0.0002089,2]
[330192655,1719101440339,-163.97261619,0.0002089,2]
[330192656,1719101440348,-6949.89151688,0.000209,2]
[330192657,1719101440358,-1398.75487454,0.000209,2]
[330192658,1719101440368,-7500.0,0.000209,2]
[330192659,1719101440377,-1000.0,0.000209,2]
[330192660,1719101440387,-317.0779841,0.000209,2]
[330192661,1719101440397,-219.83,0.00020904,2]
[330192662,1719101440406,-160.45,0.0002099,2]
[330192663,1719101440415,-160.45,0.0002099,2]
[330192664,1719101440424,-160.45,0.0002099,2]
[330192665,1719101440434,-160.45,0.0002099,2]
[330192666,1719101440444,-160.45,0.0002099,2]
[330192667,1719101440453,-160.45,0.0002099,2]
[330192668,1719101440464,-160.45,0.0002099,2]
[330192669,1719101440473,-160.45,0.0002099,2]
[330192670,1719101440483,-160.45,0.0002099,2]
[330192671,1719101440492,-160.45,0.0002099,2]
[330192672,1719101440502,-160.45,0.0002099,2]
[330192673,1719101440517,-160.45,0.0002099,2]
[330192674,1719101440526,-8653.49808628,0.00021,7]
[330192714,1719101445915,-1461.71230056,0.00020822,2]
[330192715,1719101445927,-214.29820137,0.00020822,2]
[330192716,1719101445937,-163.97261619,0.0002089,2]
[330192717,1719101445946,-163.97261619,0.0002089,2]
[330192718,1719101445956,-163.97261619,0.0002089,2]
[330192719,1719101445965,-163.97261619,0.0002089,2]
[330192720,1719101445976,-163.97261619,0.0002089,2]
[330192721,1719101445985,-163.97261619,0.0002089,2]
[330192722,1719101445995,-88.38892949,0.0002089,2]
[330192723,1719101446006,-75.5836867,0.0002089,2]
[330192724,1719101446016,-163.97261619,0.0002089,2]
[330192725,1719101446025,-163.97261619,0.0002089,2]
[330192726,1719101446035,-163.97261619,0.0002089,2]
[330192727,1719101446044,-163.97261619,0.0002089,2]
[330192728,1719101446054,-163.97261619,0.0002089,2]
[330192729,1719101446064,-163.97261619,0.0002089,2]
[330192730,1719101446075,-163.97261619,0.0002089,2]
[330192731,1719101446085,-163.97261619,0.0002089,2]
[330192732,1719101446094,-163.97261619,0.0002089,2]
[330192733,1719101446103,-163.97261619,0.0002089,2]
[330192734,1719101446113,-163.97261619,0.0002089,2]
[330192735,1719101446122,-163.97261619,0.0002089,2]
[330192736,1719101446131,-163.97261619,0.0002089,2]
[330192737,1719101446141,-163.97261619,0.0002089,2]
[330192738,1719101446150,-163.97261619,0.0002089,2]
[330192739,1719101446160,-163.97261619,0.0002089,2]
[330192740,1719101446169,-163.97261619,0.0002089,2]
[330192741,1719101446179,-150.99,0.0002099,2]
[330192742,1719101446188,-8250.74624707,0.00021,7]
[330192743,1719101446200,-3768.21493839,0.00021,7]
[330192744,1719101446211,-1629.6449603,0.00021,7]
[330192745,1719101446228,-2169.31569839,0.00021,7]
[330192746,1719101446239,-313.99159286,0.00021,7]
[330192747,1719101446250,-5000.51833819,0.00021,7]
[330192748,1719101446261,-4803.45941549,0.00021,7]
[330192749,1719101446272,-417.70024587,0.00021,7]
[330192750,1719101446285,-4432.77824369,0.00021,7]
[330192751,1719101446297,-329.34405355,0.00021,7]
[330192763,1719102632011,-522.18870084,0.00015478,2]
[330192764,1719102632023,-817.71255252,0.00015478,2]
[330192765,1719102632033,-314.80215571,0.00015478,2]
[330192774,1719102637902,-424.88308538,0.00015478,2]
[330192775,1719102637914,-600.21601227,0.00015478,2]
[330192776,1719102637924,-172.33,0.00015841,2]
[330192777,1719102637934,-631.35,0.00017343,2]
[330192778,1719102637944,-2045.8766,0.00018799,2]
[330192779,1719102637953,-150.0,0.00019163,2]
[330192780,1719102637964,-250.0,0.00019164,2]
[330192781,1719102637974,-409.06804634,0.00019164,2]
[330192782,1719102637986,-90.92195366,0.00019164,2]
[330192783,1719102637995,-150.0,0.00019177,2]
[330192784,1719102638005,-58.03134634,0.00019178,2]
[330192785,1719102638018,-191.96865366,0.00019178,2]
[330192786,1719102638028,-173.0,0.00019181,2]
[330192787,1719102638038,-250.0,0.00019186,2]
[330192788,1719102638048,-1506.72,0.00019208,2]
[330192789,1719102638057,-77.54023634,0.00019231,2]
[330192790,1719102638072,-3450.49798637,0.00019231,2]
[330192791,1719102638084,-2023.67043991,0.00019231,2]
[330192792,1719102638101,-1002.20146567,0.00019231,2]
[330192793,1719102638163,-336.47922348,0.00019231,2]
[330192794,1719102638174,-355.4625208,0.00019231,2]
[330192795,1719102638217,-1084.17957934,0.00019231,2]
[330192796,1719102640062,-637.30634809,0.00019231,2]
[330192797,1719102640072,-245.14,0.00019284,2]
[330192798,1719102640082,-3413.26402123,0.00019331,2]
[330192799,1719102640098,-937.99597877,0.00019331,2]
[330192800,1719102640108,-159.77,0.00019381,2]
[330192801,1719102640118,-678.0,0.000194,2]
[330192802,1719102640129,-655.0,0.000194,2]
[330192803,1719102640139,-1000.0,0.00019506,2]
[330192804,1719102640149,-178.97,0.000196,2]
[330192805,1719102640160,-631.35,0.00019606,2]
[330192806,1719102640170,-511.0615936,0.00020579,2]
[330192807,1719102640415,-285.75148297,0.00020729,2]
[330192808,1719102640426,-156.7891,0.00020733,2]
[330192809,1719102640437,-373.61267338,0.00020775,2]
[330192810,1719102640447,-219.94,0.00020795,2]
[330192811,1719102640456,-1559.971896,0.000208,2]
[330192812,1719102640468,-1000.0,0.000208,2]
[330192813,1719102640477,-3124.5656751,0.000208,2]
[330192814,1719102640487,-3002.42072499,0.000208,2]
[330192815,1719102640497,-2741.79948806,0.00020811,2]
[330192816,1719102640511,-382.766187,0.00020811,2]
[330192817,1719102640521,-2821.27710308,0.00020811,2]
[330192818,1719102640544,-181.14362185,0.00020811,2]
[330192819,1719102640554,-364.5103628,0.00020822,2]
[330192820,1719102640590,-2760.05531226,0.00020822,2]
[330192821,1719102640599,-3002.42072493,0.00020822,2]
[330192822,1719102640609,-500.0,0.00020831,2]
[330192823,1719102640619,-200.0,0.00020831,2]
[330192824,1719102640629,-3124.56567506,0.00020833,2]
[330192825,1719102640639,-1879.17517134,0.00020833,2]
[330192826,1719102640650,-708.13323566,0.00020833,2]
[330192827,1719102640682,-415.11231793,0.00020833,2]
[330192828,1719102640692,-3124.56567506,0.00020844,2]
[330192829,1719102640701,-3002.42072493,0.00020844,2]
[330192830,1719102640713,-3124.56567506,0.00020856,2]
[330192831,1719102640722,-3002.42072493,0.00020856,2]
[330192832,1719102640732,-3124.56567506,0.00020867,2]
[330192833,1719102640742,-3002.42072493,0.00020867,2]
[330192834,1719102640752,-3124.56567506,0.00020878,2]
[330192835,1719102640762,-3002.42072493,0.00020878,2]
[330192836,1719102640771,-3124.56567506,0.00020889,2]
[330192837,1719102640781,-3002.42072493,0.00020889,2]
[330192838,1719102640791,-321.07101081,0.0002089,2]
[330192839,1719102640801,-179.52460521,0.00020896,2]
[330192840,1719102640810,-179.5246052,0.00020898,2]
[330192841,1719102640820,-500.0,0.000209,2]
[330192842,1719102640830,-39400.1521,0.000209,2]
[330192843,1719102640844,-100000.0,0.000209,2]
[330192844,1719102640855,-74209.787,0.000209,2]
[330192845,1719102640865,-27772.4259,0.000209,2]
[330192846,1719102640875,-151.0,0.000209,2]
[330192847,1719102640886,-151.0,0.000209,2]
[330192848,1719102640896,-151.0,0.000209,2]
[330192849,1719102640906,-19697.90081975,0.000209,2]
[330192850,1719102640916,-163.26112512,0.000209,2]
[330192851,1719102640929,-156.79225335,0.000209,2]
[330192852,1719102640939,-151.0,0.000209,2]
[330192853,1719102640950,-151.0,0.000209,2]
[330192854,1719102640960,-215.176887,0.000209,2]
[330192855,1719102640974,-215.176887,0.000209,2]
[330192856,1719102640984,-151.0,0.000209,2]
[330192857,1719102640994,-151.0,0.000209,2]
[330192858,1719102641004,-215.176887,0.000209,2]
[330192859,1719102641014,-215.176887,0.000209,2]
[330192860,1719102641024,-151.0,0.000209,2]
[330192861,1719102641034,-151.0,0.000209,2]
[330192862,1719102641045,-159.465463,0.000209,2]
[330192863,1719102641055,-156.77732302,0.000209,2]
[330192864,1719102641064,-151.0,0.000209,2]
[330192865,1719102641074,-151.0,0.000209,2]
[330192866,1719102641083,-151.0,0.000209,2]
[330192867,1719102641092,-151.0,0.000209,2]
[330192868,1719102641101,-345.493786,0.000209,2]
[330192869,1719102641111,-345.493786,0.000209,2]
[330192870,1719102641120,-151.0,0.000209,2]
[330192871,1719102641129,-151.0,0.000209,2]
[330192872,1719102641139,-151.0,0.000209,2]
[330192873,1719102641148,-345.493786,0.000209,2]
[330192874,1719102641157,-345.493786,0.000209,2]
[330192875,1719102641167,-151.0,0.000209,2]
[330192876,1719102641176,-151.0,0.000209,2]
[330192877,1719102641185,-151.0,0.000209,2]
[330192878,1719102641194,-151.0,0.000209,2]
[330192879,1719102641203,-151.0,0.000209,2]
[330192880,1719102641213,-151.0,0.000209,2]
[330192881,1719102641222,-151.0,0.000209,2]
[330192882,1719102641232,-151.0,0.000209,2]
[330192883,1719102641241,-151.0,0.000209,2]
[330192884,1719102641250,-151.0,0.000209,2]
[330192885,1719102641259,-151.0,0.000209,2]
[330192886,1719102641269,-151.0,0.000209,2]
[330192887,1719102641278,-151.0,0.000209,2]
[330192888,1719102641287,-151.0,0.000209,2]
[330192889,1719102641296,-151.0,0.000209,2]
[330192890,1719102641305,-151.0,0.000209,2]
[330192891,1719102641315,-151.0,0.000209,2]
[330192892,1719102641325,-211.2205,0.000209,2]
[330192893,1719102641335,-151.0,0.000209,2]
[330192894,1719102641344,-151.0,0.000209,2]
[330192895,1719102641353,-151.0,0.000209,2]
[330192896,1719102641364,-151.0,0.000209,2]
[330192897,1719102641373,-151.0,0.000209,2]
[330192898,1719102641383,-151.0,0.000209,2]
[330192899,1719102641392,-151.0,0.000209,2]
[330192900,1719102641402,-151.0,0.000209,2]
[330192901,1719102641412,-151.0,0.000209,2]
[330192902,1719102641421,-151.0,0.000209,2]
[330192903,1719102641431,-160.81463076,0.000209,2]
[330192904,1719102641441,-151.0,0.000209,2]
[330192905,1719102641450,-151.0,0.000209,2]
[330192906,1719102641459,-151.0,0.000209,2]
[330192907,1719102641470,-151.0,0.000209,2]
[330192908,1719102641480,-151.0,0.000209,2]
[330192909,1719102641489,-151.0,0.000209,2]
[330192910,1719102641499,-151.0,0.000209,2]
[330192911,1719102641510,-151.0,0.000209,2]
[330192912,1719102641520,-151.0,0.000209,2]
[330192913,1719102641531,-151.0,0.000209,2]
[330192914,1719102641541,-151.0,0.000209,2]
[330192915,1719102641551,-151.0,0.000209,2]
[330192916,1719102641560,-151.0,0.000209,2]
[330192917,1719102641570,-151.0,0.000209,2]
[330192918,1719102641579,-151.0,0.000209,2]
[330192919,1719102641589,-151.0,0.000209,2]
[330192920,1719102641598,-151.0,0.000209,2]
[330192921,1719102641607,-151.0,0.000209,2]
[330192922,1719102641616,-151.0,0.000209,2]
[330192923,1719102641627,-151.0,0.000209,2]
[330192924,1719102641636,-151.0,0.000209,2]
[330192925,1719102641645,-151.0,0.000209,2]
[330192926,1719102641655,-151.0,0.000209,2]
[330192927,1719102641663,-268.020014,0.000209,2]
[330192928,1719102641672,-268.020014,0.000209,2]
[330192929,1719102641682,-268.020014,0.000209,2]
[330192930,1719102641691,-268.020014,0.000209,2]
[330192931,1719102641700,-151.0,0.000209,2]
[330192932,1719102641709,-151.0,0.000209,2]
[330192933,1719102641722,-151.0,0.000209,2]
[330192934,1719102641730,-151.0,0.000209,2]
[330192935,1719102641740,-151.0,0.000209,2]
[330192936,1719102641749,-184.791348,0.000209,2]
[330192937,1719102641757,-151.0,0.000209,2]
[330192938,1719102641767,-151.0,0.000209,2]
[330192939,1719102641776,-293.533746,0.000209,2]
[330192940,1719102641785,-293.533746,0.000209,2]
[330192941,1719102641795,-151.0,0.000209,2]
[330192942,1719102641803,-151.0,0.000209,2]
[330192943,1719102641813,-293.533746,0.000209,2]
[330192944,1719102641822,-293.533746,0.000209,2]
[330192945,1719102641831,-151.0,0.000209,2]
[330192946,1719102641840,-151.0,0.000209,2]
[330192947,1719102641853,-3124.56567506,0.000209,2]
[330192948,1719102641862,-295.775926,0.000209,2]
[330192949,1719102641871,-295.775926,0.000209,2]
[330192950,1719102641880,-151.0,0.000209,2]
[330192951,1719102641890,-151.0,0.000209,2]
[330192952,1719102641899,-151.0,0.000209,2]
[330192953,1719102641908,-151.0,0.000209,2]
[330192954,1719102641918,-295.775926,0.000209,2]
[330192955,1719102641927,-295.775926,0.000209,2]
[330192956,1719102641936,-151.0,0.000209,2]
[330192957,1719102641945,-151.0,0.000209,2]
[330192958,1719102641954,-151.0,0.000209,2]
[330192959,1719102641965,-151.0,0.000209,2]
[330192960,1719102641974,-151.0,0.000209,2]
[330192961,1719102641983,-151.0,0.000209,2]
[330192962,1719102641993,-151.0,0.000209,2]
[330192963,1719102642002,-151.0,0.000209,2]
[330192964,1719102642011,-151.0,0.000209,2]
[330192965,1719102642021,-151.0,0.000209,2]
[330192966,1719102642031,-151.0,0.000209,2]
[330192967,1719102642040,-151.0,0.000209,2]
[330192968,1719102642049,-151.0,0.000209,2]
[330192969,1719102642058,-151.0,0.000209,2]
[330192970,1719102642067,-151.0,0.000209,2]
[330192971,1719102642076,-151.0,0.000209,2]
[330192972,1719102642085,-151.0,0.000209,2]
[330192973,1719102642094,-158.797743,0.000209,2]
[330192974,1719102642103,-158.797743,0.000209,2]
[330192975,1719102642112,-158.797743,0.000209,2]
[330192976,1719102642122,-158.797743,0.000209,2]
[330192977,1719102642131,-158.797743,0.000209,2]
[330192978,1719102642141,-158.797743,0.000209,2]
[330192979,1719102642151,-283.298356,0.000209,2]
[330192980,1719102642161,-151.0,0.000209,2]
[330192981,1719102642171,-151.0,0.000209,2]
[330192982,1719102642180,-151.0,0.000209,2]
[330192983,1719102642190,-151.0,0.000209,2]
[330192984,1719102642198,-151.0,0.000209,2]
[330192985,1719102642207,-151.0,0.000209,2]
[330192986,1719102642219,-7500.0,0.000209,2]
[330192987,1719102642228,-151.0,0.000209,2]
[330192988,1719102642237,-151.0,0.000209,2]
[330192989,1719102642247,-151.0,0.000209,2]
[330192990,1719102642256,-1833.764869,0.000209,2]
[330192991,1719102642265,-1833.764869,0.000209,2]
[330192992,1719102642274,-1833.764869,0.000209,2]
[330192993,1719102642283,-1833.764869,0.000209,2]
[330192994,1719102642292,-179.5246052,0.000209,2]
[330192995,1719102642302,-1833.764869,0.000209,2]
[330192996,1719102642311,-151.0,0.000209,2]
[330192997,1719102642320,-1833.764869,0.000209,2]
[330192998,1719102642329,-151.0,0.000209,2]
[330192999,1719102642338,-151.0,0.000209,2]
[330193000,1719102642349,-151.0,0.000209,2]
[330193001,1719102642359,-151.0,0.000209,2]
[330193002,1719102642368,-151.0,0.000209,2]
[330193003,1719102642378,-151.0,0.000209,2]
[330193004,1719102642387,-151.0,0.000209,2]
[330193005,1719102642396,-184.349321,0.000209,2]
[330193006,1719102642406,-184.349321,0.000209,2]
[330193007,1719102642415,-184.349321,0.000209,2]
[330193008,1719102642424,-1762.37693162,0.000209,2]
[330193009,1719102642434,-184.349321,0.000209,2]
[330193010,1719102642443,-184.349321,0.000209,2]
[330193011,1719102642452,-184.349321,0.000209,2]
[330193012,1719102642461,-151.0,0.000209,2]
[330193013,1719102642474,-151.0,0.000209,2]
[330193014,1719102642483,-151.0,0.000209,2]
[330193015,1719102642492,-1000.0,0.000209,2]
[330193016,1719102642501,-151.0,0.000209,2]
[330193017,1719102642510,-151.0,0.000209,2]
[330193018,1719102642519,-151.0,0.000209,2]
[330193019,1719102642528,-179.702856,0.000209,2]
[330193020,1719102642537,-179.702856,0.000209,2]
[330193021,1719102642547,-179.702856,0.000209,2]
[330193022,1719102642555,-179.702856,0.000209,2]
[330193023,1719102642564,-179.702856,0.000209,2]
[330193024,1719102642574,-179.702856,0.000209,2]
[330193025,1719102642583,-151.0,0.000209,2]
[330193026,1719102642592,-151.0,0.000209,2]
[330193027,1719102642601,-151.0,0.000209,2]
[330193028,1719102642611,-151.0,0.000209,2]
[330193029,1719102642620,-151.0,0.000209,2]
[330193030,1719102642629,-164.067862,0.000209,2]
[330193031,1719102642639,-221.557383,0.000209,2]
[330193032,1719102642648,-151.0,0.000209,2]
[330193033,1719102642657,-151.0,0.000209,2]
[330193035,1719102642666,-151.0,0.000209,2]
[330193037,1719102642675,-151.0,0.000209,2]
[330193039,1719102642685,-151.0,0.000209,2]
[330193041,1719102642694,-151.0,0.000209,2]
[330193042,1719102642703,-151.0,0.000209,2]
[330193043,1719102642712,-151.0,0.000209,2]
[330193044,1719102642724,-151.0,0.000209,2]
[330193045,1719102642732,-151.0,0.000209,2]
[330193046,1719102642741,-3002.42072493,0.000209,2]
[330193048,1719102642751,-151.0,0.000209,2]
[330193050,1719102642760,-151.0,0.000209,2]
[330193051,1719102642769,-151.0,0.000209,2]
[330193053,1719102642778,-151.0,0.000209,2]
[330193054,1719102642787,-151.0,0.000209,2]
[330193055,1719102642797,-151.0,0.000209,2]
[330193056,1719102642806,-278.761568,0.000209,2]
[330193057,1719102642815,-151.0,0.000209,2]
[330193059,1719102642824,-151.0,0.000209,2]
[330193061,1719102642833,-151.0,0.000209,2]
[330193062,1719102642847,-5378.66326284,0.00020902,2]
[330193063,1719102642856,-430.46189482,0.00020967,2]
[330193064,1719102642865,-743.5173069,0.0002099,2]
[330193066,1719102642874,-4686.41345867,0.0002099,2]
[330193068,1719102642884,-151.0,0.0002099,2]
[330193070,1719102642893,-151.0,0.0002099,2]
[330193072,1719102642902,-155.371557,0.0002099,2]
[330193074,1719102642911,-151.0,0.0002099,2]
[330193077,1719102642920,-151.0,0.0002099,2]
[330193080,1719102642931,-151.0,0.0002099,2]
[330193083,1719102642940,-151.0,0.0002099,2]
[330193087,1719102642949,-268.020014,0.0002099,2]
[330193089,1719102642958,-268.020014,0.0002099,2]
[330193092,1719102642970,-151.0,0.0002099,2]
[330193095,1719102642979,-151.0,0.0002099,2]
[330193098,1719102642988,-293.533746,0.0002099,2]
[330193100,1719102642997,-293.533746,0.0002099,2]
[330193102,1719102643009,-186.563634,0.0002099,2]
[330193105,1719102643018,-2299.08804,0.0002099,2]
[330193107,1719102643026,-295.775926,0.0002099,2]
[330193111,1719102643035,-151.0,0.0002099,2]
[330193114,1719102643044,-151.0,0.0002099,2]
[330193116,1719102643052,-295.775926,0.0002099,2]
[330193119,1719102643061,-151.0,0.0002099,2]
[330193122,1719102643070,-151.0,0.0002099,2]
[330193124,1719102643079,-151.0,0.0002099,2]
[330193127,1719102643087,-2375.09157428,0.00020995,2]
[330193130,1719102643096,-753.48832543,0.00020995,2]
[330193132,1719102643105,-53262.83373952,0.00020996,2]
[330193159,1719102643830,-151.0,0.000209,2]
[330193160,1719102643840,-151.0,0.000209,2]
[330193161,1719102643855,-151.0,0.000209,2]
[330193162,1719102643864,-151.0,0.000209,2]
[330193163,1719102643874,-151.0,0.000209,2]
[330193164,1719102643883,-151.0,0.000209,2]
[330193165,1719102643892,-71735.18874038,0.00020996,2]
[330193166,1719102643903,-300.783705,0.00020996,2]
[330193167,1719102643912,-1833.764869,0.00020996,2]
[330193168,1719102643922,-1833.764869,0.00020996,2]
[330193169,1719102643931,-151.0,0.00020996,2]
[330193170,1719102643940,-11278.4809402,0.00020996,2]
[330193171,1719102643949,-184.349321,0.00020996,2]
[330193172,1719102643959,-184.349321,0.00020996,2]
[330193173,1719102643968,-8071.3574314,0.00020996,2]
[330193174,1719102643978,-151.0,0.00020996,2]
[330193175,1719102643987,-179.702856,0.00020996,2]
[330193176,1719102643996,-179.702856,0.00020996,2]
[330193177,1719102644006,-151.0,0.00020996,2]
[330193178,1719102644209,-151.0,0.00020996,2]
[330193179,1719102644221,-151.0,0.00020996,2]
[330193180,1719102644230,-151.0,0.00020996,2]
[330193181,1719102644240,-208.99062426,0.00020997,2]
[330193182,1719102644249,-2534.68662982,0.00020997,2]
[330193183,1719102644259,-151.0,0.00020997,2]
[330193184,1719102644269,-151.0,0.00020997,2]
[330193185,1719102644278,-151.0,0.00020997,2]
[330193186,1719102644287,-151.0,0.00020997,2]
[330193187,1719102644297,-151.0,0.00020997,2]
[330193188,1719102644306,-151.0,0.00020997,2]
[330193189,1719102644315,-151.0,0.00020997,2]
[330193190,1719102644324,-151.0,0.00020997,2]
[330193191,1719102644334,-151.0,0.00020997,2]
[330193192,1719102644343,-151.0,0.00020997,2]
[330193193,1719102644352,-151.0,0.00020997,2]
[330193194,1719102644361,-1000.0,0.00020999,2]
[330193195,1719102644371,-1000.7694,0.00020999,2]
[330193196,1719102644380,-527.94009131,0.00020999,2]
[330193197,1719102644389,-192.98244386,0.00020999,2]
[330193198,1719102644398,-201.35632768,0.00020999,2]
[330193199,1719102644407,-527.94009131,0.00020999,2]
[330193200,1719102644417,-570.67273149,0.00020999,2]
[330193201,1719102644426,-506.0,0.00021,2]
[330193202,1719102644436,-28880.35961047,0.00021,7]
[330193203,1719102644446,-61445.31395275,0.00021,4]
[330193204,1719102644472,-12258.37352711,0.00021,4]
[330193205,1719102644547,-10784.91625769,0.00021,4]
[330193206,1719102644558,-327.35007536,0.00021,4]
[330193207,1719102644612,-88863.96924294,0.00021,4]
[330193208,1719102644624,-30174.56729985,0.00021,4]
[330193209,1719102644640,-563.8784653,0.00021,4]